bitfinex-derivatives/quotes_BTCF0:USTF0_20250805
["timestamp","ask_amount","ask_price","bid_price","bid_amount"]
[1754393250611,0.1740128,114970.0,114960.0,2.41862552]
[1754393251119,0.1740128,114970.0,114960.0,2.01317298]
[1754393252021,0.2445247,114990.0,114980.0,0.3044258]
[1754393252228,0.201038,114990.0,114980.0,1.71125088]
[1754393253419,0.02709,114990.0,114980.0,1.71125088]
[1754393253718,0.2010325,114990.0,114980.0,1.71125088]
[1754393254022,0.1739425,114990.0,114980.0,1.71125088]
[1754393254420,0.2010325,114990.0,114980.0,1.71125088]
[1754393254919,0.1010325,114990.0,114980.0,1.71125088]
[1754393255114,0.2879979,115000.0,114990.0,0.1739425]
[1754393255321,0.2879979,115000.0,114990.0,0.98484758]
[1754393256725,0.2879979,115000.0,114990.0,1.01178355]
[1754393256924,0.3330479,115000.0,114990.0,1.01178355]
[1754393258427,0.3971979,115000.0,114990.0,1.01178355]
[1754393259130,0.3971979,115000.0,114990.0,1.27658355]
[1754393259831,0.4274379,115000.0,114990.0,1.27658355]
[1754393260726,0.2879979,115000.0,114990.0,1.27658355]
[1754393261127,0.3330479,115000.0,114990.0,1.27658355]
[1754393261333,0.4274379,115000.0,114990.0,1.27658355]
[1754393262839,0.4274379,115000.0,114990.0,0.46567847]
[1754393263137,0.4274379,115000.0,114990.0,1.27658355]
[1754393263435,0.4274379,115000.0,114990.0,0.46567847]
[1754393263635,0.4274379,115000.0,114990.0,1.27658355]
[1754393265731,0.4274379,115000.0,114990.0,1.07570508]
[1754393266034,0.4274379,115000.0,114990.0,0.2648]
[1754393266337,0.83289044,115000.0,114990.0,0.86076]
[1754393266535,0.83289044,115000.0,114990.0,1.26621254]
[1754393267931,0.83289044,115000.0,114990.0,0.2648]
[1754393268133,0.83289044,115000.0,114970.0,0.217451]
[1754393268134,0.3405028,114970.0,114960.0,0.84422584]
[1754393268335,0.3405028,114970.0,114960.0,1.17606584]
[1754393268734,0.3405028,114970.0,114960.0,1.1304487]
[1754393268941,0.3405028,114970.0,114960.0,0.9564754]
[1754393269536,0.3405028,114970.0,114960.0,0.3598354]
[1754393269740,0.3405028,114970.0,114960.0,0.9564754]
[1754393269940,0.3405028,114970.0,114960.0,0.9565154]
[1754393270441,0.3405028,114970.0,114960.0,1.1305033]
[1754393270641,0.3405028,114970.0,114960.0,0.9565154]
[1754393271040,0.3405028,114970.0,114960.0,1.1305033]
[1754393271241,0.3405028,114970.0,114960.0,0.9565154]
[1754393272040,0.3405028,114970.0,114960.0,1.1305033]
[1754393272938,0.3405028,114970.0,114960.0,0.7706679]
[1754393273238,0.3405028,114970.0,114960.0,1.1305033]
[1754393276240,0.3405028,114970.0,114960.0,0.9565154]
[1754393276538,0.3405028,114970.0,114960.0,0.9564354]
[1754393278342,0.3405028,114970.0,114960.0,0.3598354]
[1754393278540,0.3405028,114970.0,114960.0,0.9564354]
[1754393279046,0.3405028,114970.0,114960.0,0.3598354]
[1754393279241,0.3405028,114970.0,114960.0,0.9563154]
[1754393280535,0.16653,114970.0,114950.0,0.31212455]
[1754393280740,0.3405179,114960.0,114950.0,0.60186795]
[1754393280941,0.3405179,114960.0,114950.0,1.19846795]
[1754393281140,0.3405179,114960.0,114950.0,1.02446495]
[1754393281647,0.3405179,114960.0,114950.0,1.20421795]
[1754393281948,0.1739879,114960.0,114950.0,1.20636795]
[1754393282944,0.2017879,114960.0,114950.0,1.32245595]
[1754393292853,0.1739879,114960.0,114950.0,1.68229135]
[1754393293353,0.1739879,114960.0,114950.0,1.32245595]
[1754393294153,0.2017879,114960.0,114950.0,1.32245595]
[1754393297456,0.2017879,114960.0,114950.0,1.58725595]
[1754393298059,0.1279879,114960.0,114950.0,1.58725595]
[1754393298853,0.1119879,114960.0,114950.0,1.58725595]
[1754393299056,0.1377879,114960.0,114950.0,1.58725595]
[1754393299455,0.1287879,114960.0,114950.0,1.58725595]
[1754393299959,0.1057879,114960.0,114950.0,1.58725595]
[1754393300960,0.1037879,114960.0,114950.0,1.58725595]
[1754393301258,0.1017879,114960.0,114950.0,1.58725595]
[1754393301661,0.1017879,114960.0,114950.0,1.00329595]
[1754393301961,0.1017879,114960.0,114950.0,1.59929595]
[1754393305856,0.1017879,114960.0,114950.0,1.95913135]
[1754393306061,0.2017879,114960.0,114950.0,1.95913135]
[1754393306263,0.0278,114960.0,114950.0,1.95913135]
[1754393306463,0.3845992,114970.0,114960.0,0.1849835]
[1754393306663,0.3845992,114970.0,114960.0,0.9115343]
[1754393306865,0.319607,114970.0,114960.0,0.9115343]
[1754393307163,0.4065985,114970.0,114960.0,0.9115343]
[1754393308167,0.4065985,114970.0,114960.0,0.9125343]
[1754393308868,0.4439885,114970.0,114960.0,0.9125343]
[1754393309168,0.4739285,114970.0,114960.0,0.5526989]
[1754393310168,0.4739285,114970.0,114960.0,0.6677869]
[1754393312070,0.4739285,114970.0,114960.0,0.4938034]
[1754393312271,0.4739285,114970.0,114960.0,1.0897634]
[1754393312569,0.4739285,114970.0,114960.0,1.0878934]
[1754393315573,0.4739285,114970.0,114960.0,1.2618763]
[1754393316772,0.4739285,114970.0,114960.0,1.0878934]
[1754393317876,0.4739285,114970.0,114960.0,1.2618762]
[1754393319777,0.4739285,114970.0,114960.0,1.2637662]
[1754393320276,0.4739285,114970.0,114960.0,1.6236016]
[1754393320277,0.3995985,114970.0,114960.0,1.6236016]
[1754393322976,0.4424785,114970.0,114960.0,1.6236016]
[1754393323880,0.3307285,114970.0,114960.0,1.6236016]
[1754393326780,0.4247785,114970.0,114960.0,1.2637662]
[1754393326979,0.4676585,114970.0,114960.0,1.0897834]
[1754393327277,0.4676585,114970.0,114960.0,1.0878934]
[1754393328074,0.4676585,114970.0,114960.0,1.2618772]
[1754393328888,0.4676585,114970.0,114960.0,1.0878934]
[1754393329889,0.4676585,114970.0,114960.0,1.2618771]
[1754393330189,0.4676585,114970.0,114960.0,1.2637671]
[1754393335996,0.4676585,114970.0,114960.0,1.0897834]
[1754393338195,0.4676585,114970.0,114960.0,1.2637669]
[1754393338397,0.4676585,114970.0,114960.0,1.0897834]
[1754393338894,0.4676585,114970.0,114960.0,1.0878934]
[1754393340199,0.4676585,114970.0,114960.0,1.2618769]
[1754393342101,0.4676585,114970.0,114960.0,1.2627769]
[1754393342704,0.4676585,114970.0,114960.0,1.71239558]
[1754393343100,0.4402485,114970.0,114960.0,1.71239558]
[1754393343503,0.3973685,114970.0,114960.0,1.71239558]
[1754393344099,0.4409985,114970.0,114960.0,1.71239558]
[1754393344401,0.4698385,114970.0,114960.0,1.71239558]
[1754393344598,0.4698385,114970.0,114960.0,0.9029415]
[1754393344803,0.4698385,114970.0,114960.0,1.62243472]
[1754393346806,0.4698385,114970.0,114960.0,1.26268811]
[1754393349808,0.4698385,114970.0,114960.0,1.62243472]
[1754393357108,0.4698385,114970.0,114960.0,1.26268811]
[1754393361408,0.3044364,114980.0,114970.0,0.173968]
[1754393361613,0.2431547,114980.0,114970.0,1.40281461]
[1754393363911,0.2431547,114980.0,114970.0,1.40381461]
[1754393365316,0.2431547,114980.0,114970.0,1.51890261]
[1754393365516,0.1431547,114980.0,114970.0,1.25410261]
[1754393365717,0.186646,114980.0,114970.0,1.25410261]
[1754393367517,0.186646,114980.0,114970.0,0.65838261]
[1754393367819,0.324106,114980.0,114970.0,1.25406261]
[1754393371522,0.324106,114980.0,114970.0,1.51886261]
[1754393372624,0.324106,114980.0,114970.0,1.56374114]
[1754393379532,0.324106,114980.0,114970.0,0.96806114]
[1754393379733,0.324106,114980.0,114970.0,1.56362114]
[1754393381835,0.324106,114980.0,114970.0,1.38965314]
[1754393382035,0.324106,114980.0,114970.0,1.56362074]
[1754393382236,0.313106,114980.0,114970.0,1.56362074]
[1754393382931,0.312106,114980.0,114970.0,1.56362074]
[1754393383532,0.310106,114980.0,114970.0,1.56362074]
[1754393384935,0.309106,114980.0,114970.0,1.56362074]
[1754393385436,0.297106,114980.0,114970.0,1.56362074]
[1754393385836,0.2066513,114980.0,114970.0,1.56362074]
[1754393386034,0.3806193,114980.0,114970.0,1.56362074]
[1754393386835,0.3786193,114980.0,114970.0,1.56362074]
[1754393387236,0.3756193,114980.0,114970.0,1.56362074]
[1754393387640,0.3746193,114980.0,114970.0,1.56362074]
[1754393387937,0.3716193,114980.0,114970.0,1.56362074]
[1754393388437,0.3696193,114980.0,114970.0,1.56362074]
[1754393388633,0.3586193,114980.0,114970.0,1.96824588]
[1754393388830,0.2211593,114980.0,114970.0,1.96824588]
[1754393389028,0.2174593,114980.0,114970.0,1.96824588]
[1754393389435,0.2154593,114980.0,114970.0,1.96824588]
[1754393389736,0.2951593,114980.0,114970.0,1.96824588]
[1754393389936,0.3246793,114980.0,114970.0,1.56362074]
[1754393390138,0.3428293,114980.0,114970.0,1.56362074]
[1754393390737,0.3691393,114980.0,114970.0,1.56362074]
[1754393392632,0.3691393,114980.0,114970.0,0.96806074]
[1754393392837,0.3691393,114980.0,114970.0,1.56350074]
[1754393395939,0.3691393,114980.0,114970.0,1.96812588]
[1754393398341,0.3691393,114980.0,114970.0,1.56350074]
[1754393401543,0.3691393,114980.0,114970.0,1.96812588]
[1754393401735,0.2327693,114980.0,114970.0,1.96812588]
[1754393401935,0.0304595,114990.0,114980.0,0.1915024]
[1754393402143,0.2735265,114990.0,114980.0,1.28725268]
[1754393402539,0.3897165,114990.0,114980.0,1.28725268]
[1754393402744,0.4080365,114990.0,114980.0,1.28725268]
[1754393405142,0.4080365,114990.0,114980.0,1.40234068]
[1754393405636,0.4080365,114990.0,114980.0,1.42518211]
[1754393408044,0.4080365,114990.0,114980.0,1.16038211]
[1754393416050,0.2478965,114990.0,114980.0,1.16038211]
[1754393416551,0.2735265,114990.0,114980.0,1.16038211]
[1754393416852,0.3156265,114990.0,114980.0,1.16038211]
[1754393417152,0.4080365,114990.0,114980.0,1.16038211]
[1754393417654,0.4080365,114990.0,114980.0,1.16138211]
[1754393421152,0.4080365,114990.0,114980.0,0.53826314]
[1754393421351,1.11266164,114990.0,114980.0,0.116088]
[1754393421554,1.11266164,114990.0,114980.0,0.711288]
[1754393421758,1.11266164,114990.0,114980.0,1.11591314]
[1754393422650,0.7080365,114990.0,114980.0,1.11591314]
[1754393424053,1.11266164,114990.0,114980.0,0.711288]
[1754393424247,1.51728678,114990.0,114980.0,0.665888]
[1754393424653,1.28659764,114990.0,114980.0,0.664888]
[1754393425055,1.28659764,114990.0,114980.0,0.069728]
[1754393425360,1.28659764,114990.0,114980.0,0.664928]
[1754393426061,1.28659764,114990.0,114980.0,1.06955314]
[1754393426957,1.28659764,114990.0,114980.0,0.664928]
[1754393427359,0.8819725,114990.0,114980.0,0.664928]
[1754393427562,1.28659764,114990.0,114980.0,0.664928]
[1754393429063,0.98659764,114990.0,114980.0,0.664928]
[1754393431369,1.28659764,114990.0,114980.0,0.664888]
[1754393432461,1.28659764,114990.0,114980.0,1e-07]
[1754393432656,1.69122278,114990.0,114980.0,1e-07]
[1754393432860,0.2914079,114970.0,114960.0,1.203]
[1754393433056,0.74114304,114970.0,114960.0,1.7982]
[1754393433255,0.91511104,114970.0,114960.0,0.99982514]
[1754393433460,0.91511104,114970.0,114960.0,0.93570424]
[1754393434158,0.1739829,114960.0,114950.0,0.15600955]
[1754393434361,0.3365329,114960.0,114950.0,1.15583469]
[1754393434864,0.3365329,114960.0,114950.0,0.75120955]
[1754393435064,0.3365329,114960.0,114950.0,1.15583469]
[1754393435461,0.3365329,114960.0,114950.0,1.15783469]
[1754393435964,0.3365329,114960.0,114950.0,1.27092269]
[1754393436163,0.3365329,114960.0,114950.0,1.27192269]
[1754393436561,0.3365329,114960.0,114950.0,0.86729755]
[1754393436866,0.3365329,114960.0,114950.0,1.27292269]
[1754393437664,0.3365329,114960.0,114950.0,1.27192269]
[1754393437854,0.35661572,114960.0,114950.0,1.27192269]
[1754393438864,0.35661572,114960.0,114950.0,1.27196269]
[1754393439358,0.35661572,114960.0,114950.0,1.29387269]
[1754393439954,0.3365329,114960.0,114950.0,0.88924755]
[1754393440159,0.3365329,114960.0,114950.0,1.29387269]
[1754393440566,0.35624209,114960.0,114950.0,1.29387269]
[1754393440766,0.3365329,114960.0,114950.0,0.88924755]
[1754393441065,0.74115804,114960.0,114950.0,1.29387269]
[1754393441266,0.3365329,114960.0,114950.0,1.29387269]
[1754393442068,0.74115804,114960.0,114950.0,1.29387269]
[1754393442264,0.74115804,114960.0,114950.0,0.88924755]
[1754393442466,0.74115804,114960.0,114950.0,1.29387269]
[1754393443069,0.74115804,114960.0,114950.0,1.29392269]
[1754393443668,0.76107375,114960.0,114950.0,1.29392269]
[1754393444064,0.76107375,114960.0,114950.0,0.88937755]
[1754393444264,0.76107375,114960.0,114950.0,1.29400269]
[1754393444968,0.76107375,114960.0,114950.0,0.18411755]
[1754393445265,0.76107375,114960.0,114950.0,0.86750755]
[1754393445469,0.76107375,114960.0,114950.0,1.27213269]
[1754393446169,0.76107375,114960.0,114950.0,0.86758755]
[1754393446372,0.76107375,114960.0,114950.0,1.27221269]
[1754393446970,0.35644861,114960.0,114950.0,1.27221269]
[1754393447170,0.76107375,114960.0,114950.0,0.86758755]
[1754393447372,0.76107375,114960.0,114950.0,1.27221269]
[1754393447571,0.28462861,114960.0,114950.0,1.27221269]
[1754393447872,0.76107375,114960.0,114950.0,1.29426269]
[1754393448571,0.35644861,114960.0,114950.0,0.88963755]
[1754393448770,0.76107375,114960.0,114950.0,1.29426269]
[1754393449973,0.3365329,114960.0,114950.0,1.29426269]
[1754393450166,0.74115804,114960.0,114950.0,1.29426269]
[1754393451072,0.74115804,114960.0,114950.0,0.88963755]
[1754393451270,0.74115804,114960.0,114950.0,1.29426269]
[1754393452072,0.74115804,114960.0,114950.0,1.27221269]
[1754393453370,0.74115804,114960.0,114950.0,1.29426269]
[1754393454976,0.74115804,114960.0,114950.0,0.88963755]
[1754393455182,0.74115804,114960.0,114950.0,1.29426269]
[1754393457391,0.74115804,114960.0,114950.0,0.88963755]
[1754393457589,0.74115804,114960.0,114950.0,1.29426269]
[1754393458490,0.74115804,114960.0,114950.0,1.27221269]
[1754393458789,0.74115804,114960.0,114950.0,1.29426269]
[1754393461788,0.3365329,114960.0,114950.0,1.29426269]
[1754393461990,0.74115804,114960.0,114950.0,1.29426269]
[1754393463295,0.76863078,114960.0,114950.0,1.29426269]
[1754393465096,0.76863609,114960.0,114950.0,1.29426269]
[1754393465297,0.74115804,114960.0,114950.0,1.29426269]
[1754393467292,0.74115804,114960.0,114950.0,0.6375601]
[1754393467499,0.74115804,114960.0,114950.0,0.6814901]
[1754393467796,0.3365329,114960.0,114950.0,0.6814901]
[1754393467996,0.76863893,114960.0,114950.0,1.08611524]
[1754393468800,0.76863893,114960.0,114950.0,0.6814901]
[1754393469100,0.76863893,114960.0,114950.0,1.08611524]
[1754393469301,0.76863893,114960.0,114950.0,1.20120324]
[1754393469502,0.36401379,114960.0,114950.0,1.20120324]
[1754393469696,0.76863893,114960.0,114950.0,1.20120324]
[1754393473307,0.76863893,114960.0,114950.0,0.7965781]
[1754393475000,0.36401379,114960.0,114950.0,0.7965781]
[1754393475206,0.76863893,114960.0,114950.0,0.7965781]
[1754393475906,0.36401379,114960.0,114950.0,0.7965781]
[1754393476097,0.76863893,114960.0,114950.0,0.7965781]
[1754393477407,0.76863893,114960.0,114950.0,1.20120324]
[1754393478206,0.74115804,114960.0,114950.0,0.7965781]
[1754393480207,0.1740284,114930.0,114920.0,1.50891243]
[1754393480408,0.2009884,114930.0,114920.0,2.24457757]
[1754393480707,0.2009884,114930.0,114920.0,1.08542757]
[1754393480907,0.2009884,114930.0,114920.0,1.10276757]
[1754393481107,0.1740284,114930.0,114920.0,0.50692757]
[1754393481317,0.2009884,114930.0,114920.0,1.10288757]
[1754393481810,0.64312354,114930.0,114920.0,0.46889514]
[1754393482009,0.73979354,114930.0,114920.0,1.08629514]
[1754393482509,1.91432268,114930.0,114920.0,1e-07]
[1754393482707,1.94362428,114930.0,114890.0,0.66692579]
[1754393482903,1.18798408,114900.0,114890.0,0.59608]
[1754393483103,0.78335894,114900.0,114890.0,0.59608]
[1754393483708,0.80385611,114900.0,114890.0,0.59608]
[1754393483909,0.80385611,114900.0,114890.0,0.59808]
[1754393484219,1.20848125,114900.0,114890.0,0.60016]
[1754393484407,1.20848125,114900.0,114890.0,0.715248]
[1754393484606,1.20848125,114900.0,114890.0,0.713248]
[1754393484607,0.75960657,114900.0,114890.0,0.713248]
[1754393485215,0.39923097,114900.0,114890.0,0.713248]
[1754393485408,0.75960657,114900.0,114890.0,0.713248]
[1754393486508,0.3787338,114900.0,114890.0,0.713248]
[1754393486709,0.7391094,114900.0,114890.0,0.713248]
[1754393487114,0.7391094,114900.0,114890.0,0.713928]
[1754393487416,0.3787338,114900.0,114890.0,0.713928]
[1754393488416,0.7391094,114900.0,114890.0,0.713928]
[1754393490821,0.3787338,114900.0,114890.0,0.713928]
[1754393491726,0.3787338,114900.0,114890.0,0.714338]
[1754393493525,0.7391094,114900.0,114890.0,0.714338]
[1754393493821,0.3787338,114900.0,114890.0,0.714338]
[1754393494026,0.7391094,114900.0,114890.0,0.714338]
[1754393496424,0.3787338,114900.0,114890.0,0.714338]
[1754393497027,0.7391094,114900.0,114890.0,0.714338]
[1754393497725,0.7391094,114900.0,114890.0,0.713928]
[1754393499328,0.7391094,114900.0,114890.0,0.714338]
[1754393502427,0.7391094,114900.0,114890.0,0.115498]
[1754393503030,0.3787338,114900.0,114890.0,0.115498]
[1754393503331,0.7391094,114900.0,114890.0,0.115498]
[1754393507129,0.3787338,114900.0,114890.0,0.115498]
[1754393507334,0.76643212,114900.0,114890.0,0.115498]
[1754393510139,0.76688807,114900.0,114890.0,0.115498]
[1754393511739,0.40651247,114900.0,114890.0,0.115498]
[1754393511938,0.76688807,114900.0,114890.0,0.115498]
[1754393512437,0.40651247,114900.0,114890.0,0.115498]
[1754393512642,0.76688807,114900.0,114890.0,0.115498]
[1754393515640,0.76688807,114900.0,114890.0,0.115088]
[1754393517533,0.40651247,114900.0,114890.0,0.115088]
[1754393517736,0.76688807,114900.0,114890.0,0.115088]
[1754393520544,0.76688807,114900.0,114890.0,0.0716678]
[1754393520847,0.2368288,114890.0,114880.0,0.66744883]
[1754393521142,0.72070307,114890.0,114880.0,0.66744883]
[1754393521339,0.2200241,114880.0,114870.0,0.59884]
[1754393521543,0.3050692,114870.0,114860.0,1.20348]
[1754393521738,0.6929548,114870.0,114860.0,1.20348]
[1754393521938,0.6929548,114870.0,114860.0,1.80304]
[1754393522347,0.3325792,114870.0,114860.0,1.80304]
[1754393523034,0.3325792,114870.0,114860.0,1.80504]
[1754393523234,0.3596212,114870.0,114860.0,1.80504]
[1754393523840,0.3596212,114870.0,114860.0,1.80904]
[1754393524034,0.3596212,114870.0,114860.0,0.720648]
[1754393524943,0.7199968,114870.0,114860.0,0.720648]
[1754393525442,0.7199968,114870.0,114860.0,0.121088]
[1754393525643,0.3596212,114870.0,114860.0,0.121088]
[1754393526348,0.7199968,114870.0,114860.0,0.119088]
[1754393526849,0.7199968,114870.0,114860.0,0.117088]
[1754393527045,0.73765202,114870.0,114860.0,0.117088]
[1754393529145,0.37727642,114870.0,114860.0,0.117088]
[1754393529345,0.35023442,114870.0,114860.0,0.117088]
[1754393529546,0.71061002,114870.0,114860.0,0.117088]
[1754393532045,0.35023442,114870.0,114860.0,0.117088]
[1754393532349,0.71061002,114870.0,114860.0,0.117088]
[1754393532749,0.73759099,114870.0,114860.0,0.117088]
[1754393533346,0.71061002,114870.0,114860.0,0.117088]
[1754393534952,0.35023442,114870.0,114860.0,0.117088]
[1754393535252,0.71061002,114870.0,114860.0,0.117088]
[1754393535448,0.35023442,114870.0,114860.0,0.117088]
[1754393535649,0.71061002,114870.0,114860.0,0.117088]
[1754393539259,0.35023442,114870.0,114860.0,0.117088]
[1754393539461,0.71061002,114870.0,114860.0,0.117088]
[1754393540356,0.35023442,114870.0,114860.0,0.117088]
[1754393540557,0.3325792,114870.0,114860.0,0.117088]
[1754393540763,0.1997792,114870.0,114860.0,0.6516006]
[1754393541061,0.1995192,114870.0,114860.0,0.6516006]
[1754393541464,0.1995192,114870.0,114860.0,0.4774636]
[1754393541760,0.2416492,114870.0,114860.0,0.4774636]
[1754393542259,0.2416492,114870.0,114860.0,0.117088]
[1754393542458,0.2416492,114870.0,114860.0,0.49572222]
[1754393543665,0.2416492,114870.0,114860.0,0.66985932]
[1754393543865,0.1995192,114870.0,114860.0,0.66985932]
[1754393547169,0.1741192,114870.0,114860.0,0.66985932]
[1754393547571,0.1995192,114870.0,114860.0,0.66985932]
[1754393548166,0.1741192,114870.0,114860.0,1.14397932]
[1754393548369,0.3301054,114880.0,114870.0,0.1741221]
[1754393548670,0.3301054,114880.0,114870.0,1.1351377]
[1754393549572,0.3057054,114880.0,114870.0,1.1351377]
[1754393549871,0.3311054,114880.0,114870.0,1.1351377]
[1754393550274,0.3311054,114880.0,114870.0,1.2502257]
[1754393552571,0.2186476,114880.0,114870.0,1.2502257]
[1754393552774,0.2186476,114880.0,114870.0,1.72432969]
[1754393552974,0.001,114880.0,114870.0,2.08470529]
[1754393553274,0.2871042,114890.0,114880.0,0.1741069]
[1754393553470,0.2871042,114890.0,114880.0,0.5344825]
[1754393555175,0.2871042,114890.0,114880.0,0.6495705]
[1754393555574,0.2881042,114890.0,114880.0,0.6495705]
[1754393556675,0.3920042,114890.0,114880.0,0.6495705]
[1754393556873,0.4190642,114890.0,114880.0,0.6495705]
[1754393559369,0.3506342,114890.0,114880.0,0.6495705]
[1754393559871,0.3920042,114890.0,114880.0,0.6495705]
[1754393560679,0.4190642,114890.0,114880.0,0.2891949]
[1754393560879,0.4190642,114890.0,114880.0,0.6495705]
[1754393567081,0.3506342,114890.0,114880.0,0.6495705]
[1754393567481,0.3920042,114890.0,114880.0,0.6495705]
[1754393567678,0.4190642,114890.0,114880.0,0.6495705]
[1754393568485,0.2881042,114890.0,114880.0,0.9143705]
[1754393568681,0.001,114890.0,114880.0,1.2747461]
[1754393568885,0.02595,114900.0,114890.0,0.1740921]
[1754393569185,0.174077,114900.0,114890.0,1.3994677]
[1754393569489,0.200027,114900.0,114890.0,1.5735397]
[1754393569693,0.02595,114900.0,114890.0,1.5735397]
[1754393569990,0.200027,114900.0,114890.0,1.5735397]
[1754393570289,0.200027,114900.0,114890.0,1.6886277]
[1754393570680,0.200027,114900.0,114890.0,1.5145557]
[1754393570987,0.303927,114900.0,114890.0,1.6886277]
[1754393571285,0.331987,114900.0,114890.0,1.6886277]
[1754393571587,0.332987,114900.0,114890.0,1.6886277]
[1754393571982,0.331987,114900.0,114890.0,1.6886277]
[1754393572183,0.330987,114900.0,114890.0,1.6886277]
[1754393573284,0.2175871,114910.0,114900.0,0.174077]
[1754393573484,0.1129767,114920.0,114900.0,0.174077]
[1754393573485,0.3305511,114920.0,114910.0,0.1740619]
[1754393573787,0.3589503,114920.0,114910.0,1.15424605]
[1754393574189,0.4485403,114920.0,114910.0,1.15424605]
[1754393575187,0.4485403,114920.0,114910.0,1.33787675]
[1754393575389,0.4515403,114920.0,114910.0,1.33787675]
[1754393580095,0.4515403,114920.0,114910.0,0.97750115]
[1754393580295,0.4515403,114920.0,114910.0,1.33787675]
[1754393582095,0.4515403,114920.0,114910.0,0.97750115]
[1754393582295,0.4515403,114920.0,114910.0,1.33787675]
[1754393584898,0.4515403,114920.0,114910.0,1.16381485]
[1754393586000,0.4515403,114920.0,114910.0,1.33787605]
[1754393586698,0.4515403,114920.0,114910.0,1.16381485]
[1754393586899,0.4515403,114920.0,114910.0,1.33787605]
[1754393589496,0.4515403,114920.0,114910.0,1.16381485]
[1754393589899,0.4515403,114920.0,114910.0,1.33788095]
[1754393595805,0.4515403,114920.0,114910.0,1.17949882]
[1754393596804,0.4515403,114920.0,114910.0,1.35356492]
[1754393597706,0.4515403,114920.0,114910.0,1.17949882]
[1754393598605,0.4515403,114920.0,114910.0,1.35356492]
[1754393604512,0.4515403,114920.0,114910.0,1.16381485]
[1754393605110,0.4515403,114920.0,114910.0,1.33788095]
[1754393605811,0.2946303,114920.0,114910.0,1.33788095]
[1754393606011,0.3200203,114920.0,114910.0,1.33788095]
[1754393606212,0.4517603,114920.0,114910.0,1.33788095]
[1754393608006,0.3200203,114920.0,114910.0,1.3535297]
[1754393609008,0.3200203,114920.0,114910.0,0.9931541]
[1754393609208,0.3200203,114920.0,114910.0,1.3535297]
[1754393609410,0.3633703,114920.0,114910.0,1.3535297]
[1754393609812,0.4517603,114920.0,114910.0,1.3535297]
[1754393612121,0.4517603,114920.0,114910.0,0.97514535]
[1754393612315,0.4517603,114920.0,114910.0,1.33552095]
[1754393614315,0.4517603,114920.0,114910.0,0.20287925]
[1754393614517,0.8128359,114920.0,114910.0,0.20287925]
[1754393614725,0.8128359,114920.0,114910.0,0.80139925]
[1754393615826,0.4524603,114920.0,114910.0,0.80139925]
[1754393619132,0.4524603,114920.0,114910.0,0.20287925]
[1754393619325,0.4524603,114920.0,114910.0,0.80135925]
[1754393621025,0.4524603,114920.0,114910.0,1.16173485]
[1754393622227,0.4524603,114920.0,114910.0,1.33580095]
[1754393622424,0.3200203,114920.0,114910.0,1.33580095]
[1754393622928,0.3597103,114920.0,114910.0,1.33580095]
[1754393623230,0.4487403,114920.0,114910.0,1.16173485]
[1754393623831,0.4487403,114920.0,114910.0,0.80135925]
[1754393624026,0.4487403,114920.0,114910.0,1.16173485]
[1754393624424,0.4487403,114920.0,114910.0,1.33580095]
[1754393624625,0.4216303,114920.0,114910.0,1.33580095]
[1754393624931,0.4216303,114920.0,114910.0,1.16173485]
[1754393625239,0.4487403,114920.0,114910.0,1.16173485]
[1754393627027,0.4487403,114920.0,114910.0,1.33580095]
[1754393627534,0.4487403,114920.0,114910.0,1.16173485]
[1754393628425,0.4487403,114920.0,114910.0,0.80135925]
[1754393628634,0.4487403,114920.0,114910.0,1.16173485]
[1754393630735,0.4487403,114920.0,114910.0,0.80135925]
[1754393632038,0.4487403,114920.0,114910.0,0.80171925]
[1754393640546,0.4487403,114920.0,114910.0,1.16209485]
[1754393641245,0.4487403,114920.0,114910.0,0.80171925]
[1754393649545,0.4487403,114920.0,114910.0,1.16209485]
[1754393650750,0.4487403,114920.0,114910.0,0.80171925]
[1754393654453,0.4487403,114920.0,114910.0,0.97579155]
[1754393655248,0.4487403,114920.0,114910.0,0.80171925]
[1754393667860,0.4487403,114920.0,114910.0,0.20287925]
[1754393668064,0.4487403,114920.0,114910.0,0.80067925]
[1754393668669,0.85397792,114920.0,114910.0,1.20591687]
[1754393669866,0.85397792,114920.0,114910.0,0.80067925]
[1754393670067,0.86864941,114920.0,114910.0,0.73213655]
[1754393670263,0.86864941,114920.0,114910.0,0.73197655]
[1754393670463,0.86864941,114920.0,114910.0,0.10372655]
[1754393670660,1.16864941,114920.0,114910.0,0.70132655]
[1754393672168,0.86864941,114920.0,114910.0,0.70132655]
[1754393672563,0.46341179,114920.0,114910.0,0.70132655]
[1754393672762,0.82370282,114920.0,114910.0,0.70132655]
[1754393673065,0.46341179,114920.0,114910.0,0.70132655]
[1754393673265,0.82370282,114920.0,114910.0,0.70132655]
[1754393675064,0.89447798,114920.0,114910.0,0.70132655]
[1754393675759,0.89447798,114920.0,114910.0,0.10372655]
[1754393679079,0.53418695,114920.0,114910.0,0.10372655]
[1754393679762,0.4487403,114920.0,114910.0,0.10372655]
[1754393679964,0.4458203,114920.0,114910.0,0.46401758]
[1754393680976,0.4458203,114920.0,114910.0,0.10372655]
[1754393689476,0.80611133,114920.0,114910.0,0.10372655]
[1754393692176,0.4458203,114920.0,114910.0,0.10372655]
[1754393694478,0.4458203,114920.0,114910.0,0.46401758]
[1754393698278,0.4458203,114920.0,114910.0,0.63808988]
[1754393698478,0.3819403,114920.0,114910.0,0.63808988]
[1754393698684,0.3200203,114920.0,114910.0,0.63808988]
[1754393699580,0.3592003,114920.0,114910.0,0.63808988]
[1754393700483,0.3865803,114920.0,114910.0,0.63808988]
[1754393702686,0.4453403,114920.0,114910.0,0.63808988]
[1754393703784,0.4443403,114920.0,114910.0,0.63808988]
[1754393706089,0.4443403,114920.0,114910.0,0.46401758]
[1754393707785,0.4443403,114920.0,114910.0,0.70216655]
[1754393709185,0.4443403,114920.0,114910.0,1.06245758]
[1754393709382,0.4443403,114920.0,114910.0,0.70216655]
[1754393709587,0.4443403,114920.0,114910.0,1.06241758]
[1754393709788,0.4443403,114920.0,114910.0,0.70212655]
[1754393710087,0.4443403,114920.0,114910.0,1.06241758]
[1754393710389,0.4443403,114920.0,114910.0,0.70212655]
[1754393713398,0.4443403,114920.0,114910.0,1.06241758]
[1754393718692,0.4443403,114920.0,114910.0,0.70212655]
[1754393718998,0.4443403,114920.0,114910.0,1.06241758]
[1754393720700,0.4443403,114920.0,114910.0,1.23648988]
[1754393720902,0.4443403,114920.0,114910.0,1.06241758]
[1754393721599,0.4443403,114920.0,114910.0,1.23648988]
[1754393722193,0.4443403,114920.0,114910.0,1.06241758]
[1754393722397,0.4443403,114920.0,114910.0,1.23648998]
[1754393722597,0.4443403,114920.0,114910.0,1.06241758]
[1754393724507,0.80463133,114920.0,114910.0,0.70188655]
[1754393724802,0.80463133,114920.0,114910.0,0.70224655]
[1754393727307,0.4443403,114920.0,114910.0,0.70224655]
[1754393727606,0.4443403,114920.0,114910.0,0.70204655]
[1754393729002,0.80463133,114920.0,114910.0,0.70204655]
[1754393731097,0.80463133,114920.0,114910.0,0.67865925]
[1754393731300,0.80463133,114920.0,114910.0,0.05456895]